Workbook

Sheet Sheet1
A1: Comparison between a lumpsum investment in a Fixed deposit & a debt mutual fund | J1: Fixed Deposit | L1: Debt Fund | N1: Post-tax Returns | X1: 0 | Y1: =ROUND(MAX(F15:F23),2) -> 0.07
A2: fill only cells in green | I2: Year | J2: Sum at | K2: Sum at | L2: Sum at | M2: Sum at | P2: Debt fund | Q2: Debt fund | R2: Year | S2: FD | T2: Sum at | U2: Sum at | X2: 0.1 | Y2: =ROUND(MIN(F15:F23),2)-1% -> 0.05
A3: Lump sum investment | F3: 1000000 | J3: year start | K3: year end | L3: year start | M3: year end | O3: FD | P3: without indexation | Q3: with indexation | S3: Tax deffered | T3: year start | U3: year end | X3: 0.2
A4: Duration of investment (years) | F4: 30 | I4: 1 | J4: =F3 -> 1000000 | K4: =J4*((1+rate*(1-IF(tax=10%,10.3%,IF(tax=20%,20.6%,IF(tax=30%,30.9%)))))) -> 1055280 | L4: =F3 -> 1000000 | M4: =L4*((1+rated)) -> 1070000 | N4: =IF(Table1[[#This Row],[Column1]]=tenure,IF(corpnoindex<corpindex,corpnoindex,corpindex),NA()) ->  | O4: 0.05528 | P4: 0.06279 | Q4: 0.06588 | R4: 1 | S4: 0.05697744 | T4: =F3 -> 1000000 | U4: =T4*((1+rate*(1-10.3%))) -> 1071760 | V4: =IF(Table1[[#This Row],[Column1]]=tenure,fdcashposttax,NA()) ->  | X4: 0.3
A5: Interest rate of fixed deposit | F5: 0.08 | I5: =IF(I4<tenure,I4+1,"") -> 2 | J5: =IF(I5<=tenure,K4,"") -> 1055280 | K5: =IF(I5<=tenure,J5*((1+rate*(1-IF(tax=10%,10.3%,IF(tax=20%,20.6%,IF(tax=30%,30.9%)))))),NA()) -> 1113615.878 | L5: =IF(I5<=tenure,M4,"") -> 1070000 | M5: =IF(I5<=tenure,L5*((1+rated)),NA()) -> 1144900 | N5: =IF(Table1[[#This Row],[Column1]]=tenure,IF(corpnoindex<corpindex,corpnoindex,corpindex),NA()) ->  | O5: 0.05528 | P5: 0.06300296331 | Q5: 0.06591069044 | R5: 2 | S5: 0.05737579937 | T5: =IF(I5<=tenure,U4,"") -> 1071760 | U5: =IF(I5<=tenure,T5*((1+rate*(1-10.3%))),NA()) -> 1148669.498 | V5: =IF(Table1[[#This Row],[Column1]]=tenure,fdcashposttax,NA()) -> 
A6: approximate Interest rate (CAGR) of debt fund (eg. Income fund) | F6: 0.07 | I6: 3 | J6: 1113615.878 | K6: 1175176.564 | L6: 1144900 | M6: 1225043 | N6: =IF(Table1[[#This Row],[Column1]]=tenure,IF(corpnoindex<corpindex,corpnoindex,corpindex),NA()) ->  | O6: 0.05528 | P6: 0.06320837903 | Q6: 0.06594115252 | R6: 3 | S6: 0.05776312096 | T6: 1148669.498 | U6: 1231098.021 | V6: =IF(Table1[[#This Row],[Column1]]=tenure,fdcashposttax,NA()) -> 
A7: Fixed Deposit: Interest income is taxed as per slab each year. | I7: 4 | J7: 1175176.564 | K7: 1240140.325 | L7: 1225043 | M7: 1310796.01 | N7: =IF(Table1[[#This Row],[Column1]]=tenure,IF(corpnoindex<corpindex,corpnoindex,corpindex),NA()) ->  | O7: 0.05528 | P7: 0.06340647465 | Q7: 0.06597138642 | R7: 4 | S7: 0.05813948199 | T7: 1231098.021 | U7: 1319441.615 | V7: =IF(Table1[[#This Row],[Column1]]=tenure,fdcashposttax,NA()) -> 
A8: Choose applicable tax slab | F8: 0.3 | I8: 5 | J8: 1240140.325 | K8: 1308695.282 | L8: 1310796.01 | M8: 1402551.731 | N8: =IF(Table1[[#This Row],[Column1]]=tenure,IF(corpnoindex<corpindex,corpnoindex,corpindex),NA()) ->  | O8: 0.05528 | P8: 0.06359747736 | Q8: 0.06600139239 | R8: 5 | S8: 0.05850498458 | T8: 1319441.615 | U8: 1414124.745 | V8: =IF(Table1[[#This Row],[Column1]]=tenure,fdcashposttax,NA()) -> 
A9: Debt Fund: Taxation is deferred until redemption and is either | I9: 6 | J9: 1308695.282 | K9: 1381039.957 | L9: 1402551.731 | M9: 1500730.352 | N9: =IF(Table1[[#This Row],[Column1]]=tenure,IF(corpnoindex<corpindex,corpnoindex,corpindex),NA()) ->  | O9: 0.05528 | P9: 0.0637816132 | Q9: 0.06603117072 | R9: 6 | S9: 0.0588597534 | T9: 1414124.745 | U9: 1515602.337 | V9: =IF(Table1[[#This Row],[Column1]]=tenure,fdcashposttax,NA()) -> 
A10: 10% or 20% with indexation (based on cost inflation index) | I10: 7 | J10: 1381039.957 | K10: 1457383.846 | L10: 1500730.352 | M10: 1605781.476 | N10: =IF(Table1[[#This Row],[Column1]]=tenure,IF(corpnoindex<corpindex,corpnoindex,corpindex),NA()) ->  | O10: 0.05528 | P10: 0.06395910634 | Q10: 0.06606072174 | R10: 7 | S10: 0.05920393343 | T10: 1515602.337 | U10: 1624361.96 | V10: =IF(Table1[[#This Row],[Column1]]=tenure,fdcashposttax,NA()) -> 
A11: Rate of annual increase in cost inflation index (5% is good no) | F11: 0.05 | I11: 8 | J11: 1457383.846 | K11: 1537948.025 | L11: 1605781.476 | M11: 1718186.18 | N11: =IF(Table1[[#This Row],[Column1]]=tenure,IF(corpnoindex<corpindex,corpnoindex,corpindex),NA()) ->  | O11: 0.05528 | P11: 0.06413017838 | Q11: 0.06609004582 | R11: 8 | S11: 0.05953768774 | T11: 1624361.96 | U11: 1740926.175 | V11: =IF(Table1[[#This Row],[Column1]]=tenure,fdcashposttax,NA()) -> 
I12: 9 | J12: 1537948.025 | K12: 1622965.792 | L12: 1718186.18 | M12: 1838459.212 | N12: =IF(Table1[[#This Row],[Column1]]=tenure,IF(corpnoindex<corpindex,corpnoindex,corpindex),NA()) ->  | O12: 0.05528 | P12: 0.06429504783 | Q12: 0.06611914337 | R12: 9 | S12: 0.05986119531 | T12: 1740926.175 | U12: 1865855.037 | V12: =IF(Table1[[#This Row],[Column1]]=tenure,fdcashposttax,NA()) -> 
A13: FD Taxation method: Mercantile basis. Tax paid each FY | I13: 10 | J13: 1622965.792 | K13: 1712683.341 | L13: 1838459.212 | M13: 1967151.357 | N13: =IF(Table1[[#This Row],[Column1]]=tenure,IF(corpnoindex<corpindex,corpnoindex,corpindex),NA()) ->  | O13: 0.05528 | P13: 0.06445392959 | Q13: 0.06614801484 | R13: 10 | S13: 0.06017464897 | T13: 1865855.037 | U13: 1999748.794 | V13: =IF(Table1[[#This Row],[Column1]]=tenure,fdcashposttax,NA()) -> 
E14: Post-tax Returns | I14: 11 | J14: 1712683.341 | K14: 1807360.476 | L14: 1967151.357 | M14: 2104851.952 | N14: =IF(Table1[[#This Row],[Column1]]=tenure,IF(corpnoindex<corpindex,corpnoindex,corpindex),NA()) ->  | O14: 0.05528 | P14: 0.06460703451 | Q14: 0.06617666073 | R14: 11 | S14: 0.0604782534 | T14: 1999748.794 | U14: 2143250.768 | V14: =IF(Table1[[#This Row],[Column1]]=tenure,fdcashposttax,NA()) -> 
A15: Corpus from fixed deposit (post-tax) | D15: =sum*((1+rate*(1-IF(tax=10%,10.3%,IF(tax=20%,20.6%,IF(tax=30%,30.9%))))))^tenure -> 5023787.025 | F15: =(D15/F3)^(1/tenure)-1 -> 0.05528 | I15: 12 | J15: 1807360.476 | K15: 1907271.363 | L15: 2104851.952 | M15: 2252191.589 | N15: =IF(Table1[[#This Row],[Column1]]=tenure,IF(corpnoindex<corpindex,corpnoindex,corpindex),NA()) ->  | O15: 0.05528 | P15: 0.06475456906 | Q15: 0.06620508155 | R15: 12 | S15: 0.06077222331 | T15: 2143250.768 | U15: 2297050.443 | V15: =IF(Table1[[#This Row],[Column1]]=tenure,fdcashposttax,NA()) -> 
A16: Corpus from debt fund (pre-tax) | D16: =sumd*((1+rated))^tenure -> 7612255.043 | I16: 13 | J16: 1907271.363 | K16: 2012705.324 | L16: 2252191.589 | M16: 2409845 | N16: =IF(Table1[[#This Row],[Column1]]=tenure,IF(corpnoindex<corpindex,corpnoindex,corpindex),NA()) ->  | O16: 0.05528 | P16: 0.06489673501 | Q16: 0.06623327788 | R16: 13 | S16: 0.06105678164 | T16: 2297050.443 | U16: 2461886.783 | V16: =IF(Table1[[#This Row],[Column1]]=tenure,fdcashposttax,NA()) -> 
A17: Post-tax debt fund corpus without indexation | D17: =D16-(D16-F3)*10.3% -> 6931192.773 | E17: =sum*((1+rate*(1-10.3%)))^tenure -> 7996985.911 | F17: =(corpnoindex/F3)^(1/tenure)-1 -> 0.0666622678 | I17: 14 | J17: 2012705.324 | K17: 2123967.674 | L17: 2409845 | M17: 2578534.15 | N17: =IF(Table1[[#This Row],[Column1]]=tenure,IF(corpnoindex<corpindex,corpnoindex,corpindex),NA()) ->  | O17: 0.05528 | P17: 0.06503372921 | Q17: 0.06626125032 | R17: 14 | S17: 0.06133215793 | T17: 2461886.783 | U17: 2638551.778 | V17: =IF(Table1[[#This Row],[Column1]]=tenure,fdcashposttax,NA()) -> 
A18: Post-tax debt fund corpus with indexation | D18: =IF(D16-F3*(1+F11)^tenure>0,D16-(D16-F3*(1+F11)^tenure)*20.6%,D16) -> 6934450.633 | F18: =(corpindex/F3)^(1/tenure)-1 -> 0.06667897607 | I18: 15 | J18: 2123967.674 | K18: 2241380.607 | L18: 2578534.15 | M18: 2759031.541 | N18: =IF(Table1[[#This Row],[Column1]]=tenure,IF(corpnoindex<corpindex,corpnoindex,corpindex),NA()) ->  | O18: 0.05528 | P18: 0.06516574337 | Q18: 0.06628899951 | R18: 15 | S18: 0.06159858681 | T18: 2638551.778 | U18: 2827894.254 | V18: =IF(Table1[[#This Row],[Column1]]=tenure,fdcashposttax,NA()) -> 
I19: 16 | J19: 2241380.607 | K19: 2365284.127 | L19: 2759031.541 | M19: 2952163.749 | N19: =IF(Table1[[#This Row],[Column1]]=tenure,IF(corpnoindex<corpindex,corpnoindex,corpindex),NA()) ->  | O19: 0.05528 | P19: 0.06529296394 | Q19: 0.06631652611 | R19: 16 | S19: 0.06185630661 | T19: 2827894.254 | U19: 3030823.946 | V19: =IF(Table1[[#This Row],[Column1]]=tenure,fdcashposttax,NA()) -> 
A20: FD Taxation method: Cash basis. Tds paid each FY | I20: 17 | J20: 2365284.127 | K20: 2496037.033 | L20: 2952163.749 | M20: 3158815.211 | N20: =IF(Table1[[#This Row],[Column1]]=tenure,IF(corpnoindex<corpindex,corpnoindex,corpindex),NA()) ->  | O20: 0.05528 | P20: 0.06541557202 | Q20: 0.06634383083 | R20: 17 | S20: 0.06210555809 | T20: 3030823.946 | U20: 3248315.872 | V20: =IF(Table1[[#This Row],[Column1]]=tenure,fdcashposttax,NA()) -> 
A21: but rest of the tax paid on maturity | E21: Post-tax Returns | I21: 18 | J21: 2496037.033 | K21: 2634017.961 | L21: 3158815.211 | M21: 3379932.276 | N21: =IF(Table1[[#This Row],[Column1]]=tenure,IF(corpnoindex<corpindex,corpnoindex,corpindex),NA()) ->  | O21: 0.05528 | P21: 0.06553374322 | Q21: 0.06637091441 | R21: 18 | S21: 0.06234658323 | T21: 3248315.872 | U21: 3481415.019 | V21: =IF(Table1[[#This Row],[Column1]]=tenure,fdcashposttax,NA()) -> 
A22: Corpus from fixed deposit (post-tds) | D22: =sum*((1+rate*(1-10.3%)))^tenure -> 7996985.911 | I22: 19 | J22: 2634017.961 | K22: 2779626.473 | L22: 3379932.276 | M22: 3616527.535 | N22: =IF(Table1[[#This Row],[Column1]]=tenure,IF(corpnoindex<corpindex,corpnoindex,corpindex),NA()) ->  | O22: 0.05528 | P22: 0.06564764773 | Q22: 0.06639777761 | R22: 19 | S22: 0.06257962425 | T22: 3481415.019 | U22: 3731241.361 | V22: =IF(Table1[[#This Row],[Column1]]=tenure,fdcashposttax,NA()) -> 
A23: Corpus from fixed deposit (post-tax) | D23: =D22-((D22-F3)*(IF((IF(tax=10%,10.3%,IF(tax=20%,20.6%,IF(tax=30%,30.9%)))-10.3%)<0,0,(IF(tax=10%,10.3%,IF(tax=20%,20.6%,IF(tax=30%,30.9%)))-10.3%)))) -> 6555606.814 | F23: =(D23/F3)^(1/tenure)-1 -> 0.06468327034 | I23: 20 | J23: 2779626.473 | K23: 2933284.225 | L23: 3616527.535 | M23: 3869684.462 | N23: =IF(Table1[[#This Row],[Column1]]=tenure,IF(corpnoindex<corpindex,corpnoindex,corpindex),NA()) ->  | O23: 0.05528 | P23: 0.06575745021 | Q23: 0.06642442123 | R23: 20 | S23: 0.06280492263 | T23: 3731241.361 | U23: 3998995.241 | V23: =IF(Table1[[#This Row],[Column1]]=tenure,fdcashposttax,NA()) -> 
I24: 21 | J24: 2933284.225 | K24: 3095436.177 | L24: 3869684.462 | M24: 4140562.375 | N24: =IF(Table1[[#This Row],[Column1]]=tenure,IF(corpnoindex<corpindex,corpnoindex,corpindex),NA()) ->  | O24: 0.05528 | P24: 0.06586330988 | Q24: 0.06645084611 | R24: 21 | S24: 0.0630227183 | T24: 3998995.241 | U24: 4285963.139 | V24: =IF(Table1[[#This Row],[Column1]]=tenure,fdcashposttax,NA()) -> 
I25: 22 | J25: 3095436.177 | K25: 3266551.889 | L25: 4140562.375 | M25: 4430401.741 | N25: =IF(Table1[[#This Row],[Column1]]=tenure,IF(corpnoindex<corpindex,corpnoindex,corpindex),NA()) ->  | O25: 0.05528 | P25: 0.06596538054 | Q25: 0.06647705308 | R25: 22 | S25: 0.06323324889 | T25: 4285963.139 | U25: 4593523.854 | V25: =IF(Table1[[#This Row],[Column1]]=tenure,fdcashposttax,NA()) -> 
I26: 23 | J26: 3266551.889 | K26: 3447126.877 | L26: 4430401.741 | M26: 4740529.863 | N26: =IF(Table1[[#This Row],[Column1]]=tenure,IF(corpnoindex<corpindex,corpnoindex,corpindex),NA()) ->  | O26: 0.05528 | P26: 0.06606381062 | Q26: 0.06650304305 | R26: 23 | S26: 0.06343674907 | T26: 4593523.854 | U26: 4923155.126 | V26: =IF(Table1[[#This Row],[Column1]]=tenure,fdcashposttax,NA()) -> 
I27: 24 | J27: 3447126.877 | K27: 3637684.051 | L27: 4740529.863 | M27: 5072366.953 | N27: =IF(Table1[[#This Row],[Column1]]=tenure,IF(corpnoindex<corpindex,corpnoindex,corpindex),NA()) ->  | O27: 0.05528 | P27: 0.06615874326 | Q27: 0.06652881692 | R27: 24 | S27: 0.06363345002 | T27: 4923155.126 | U27: 5276440.738 | V27: =IF(Table1[[#This Row],[Column1]]=tenure,fdcashposttax,NA()) -> 
I28: 25 | J28: 3637684.051 | K28: 3838775.225 | L28: 5072366.953 | M28: 5427432.64 | N28: =IF(Table1[[#This Row],[Column1]]=tenure,IF(corpnoindex<corpindex,corpnoindex,corpindex),NA()) ->  | O28: 0.05528 | P28: 0.06625031641 | Q28: 0.06655437561 | R28: 25 | S28: 0.06382357895 | T28: 5276440.738 | U28: 5655078.125 | V28: =IF(Table1[[#This Row],[Column1]]=tenure,fdcashposttax,NA()) -> 
I29: 26 | J29: 3838775.225 | K29: 4050982.72 | L29: 5427432.64 | M29: 5807352.925 | N29: =IF(Table1[[#This Row],[Column1]]=tenure,IF(corpnoindex<corpindex,corpnoindex,corpindex),NA()) ->  | O29: 0.05528 | P29: 0.06633866292 | Q29: 0.06657972011 | R29: 26 | S29: 0.06400735865 | T29: 5655078.125 | U29: 6060886.531 | V29: =IF(Table1[[#This Row],[Column1]]=tenure,fdcashposttax,NA()) -> 
I30: 27 | J30: 4050982.72 | K30: 4274921.044 | L30: 5807352.925 | M30: 6213867.63 | N30: =IF(Table1[[#This Row],[Column1]]=tenure,IF(corpnoindex<corpindex,corpnoindex,corpindex),NA()) ->  | O30: 0.05528 | P30: 0.06642391067 | Q30: 0.06660485138 | R30: 27 | S30: 0.06418500722 | T30: 6060886.531 | U30: 6495815.749 | V30: =IF(Table1[[#This Row],[Column1]]=tenure,fdcashposttax,NA()) -> 
I31: 28 | J31: 4274921.044 | K31: 4511238.68 | L31: 6213867.63 | M31: 6648838.364 | N31: =IF(Table1[[#This Row],[Column1]]=tenure,IF(corpnoindex<corpindex,corpnoindex,corpindex),NA()) ->  | O31: 0.05528 | P31: 0.06650618265 | Q31: 0.06662977044 | R31: 28 | S31: 0.0643567377 | T31: 6495815.749 | U31: 6961955.487 | V31: =IF(Table1[[#This Row],[Column1]]=tenure,fdcashposttax,NA()) -> 
I32: 29 | J32: 4511238.68 | K32: 4760619.954 | L32: 6648838.364 | M32: 7114257.049 | N32: =IF(Table1[[#This Row],[Column1]]=tenure,IF(corpnoindex<corpindex,corpnoindex,corpindex),NA()) ->  | O32: 0.05528 | P32: 0.06658559715 | Q32: 0.06665447832 | R32: 29 | S32: 0.06452275793 | T32: 6961955.487 | U32: 7461545.412 | V32: =IF(Table1[[#This Row],[Column1]]=tenure,fdcashposttax,NA()) -> 
I33: 30 | J33: 4760619.954 | K33: 5023787.025 | L33: 7114257.049 | M33: 7612255.043 | N33: =IF(Table1[[#This Row],[Column1]]=tenure,IF(corpnoindex<corpindex,corpnoindex,corpindex),NA()) -> 6931192.773 | O33: 0.05528 | P33: 0.0666622678 | Q33: 0.06667897607 | R33: 30 | S33: 0.06468327034 | T33: 7461545.412 | U33: 7996985.911 | V33: =IF(Table1[[#This Row],[Column1]]=tenure,fdcashposttax,NA()) -> 6555606.814
N34: =IF(Table1[[#This Row],[Column1]]=tenure,IF(corpnoindex<corpindex,corpnoindex,corpindex),NA()) ->  | V34: =IF(Table1[[#This Row],[Column1]]=tenure,fdcashposttax,NA()) -> 
N35: =IF(Table1[[#This Row],[Column1]]=tenure,IF(corpnoindex<corpindex,corpnoindex,corpindex),NA()) ->  | V35: =IF(Table1[[#This Row],[Column1]]=tenure,fdcashposttax,NA()) -> 
N36: =IF(Table1[[#This Row],[Column1]]=tenure,IF(corpnoindex<corpindex,corpnoindex,corpindex),NA()) ->  | V36: =IF(Table1[[#This Row],[Column1]]=tenure,fdcashposttax,NA()) -> 
I37: =IF(I36<tenure,I36+1,"") ->  | J37: =IF(I37<=tenure,K36,"") ->  | K37: =IF(I37<=tenure,J37*((1+rate*(1-IF(tax=10%,10.3%,IF(tax=20%,20.6%,IF(tax=30%,30.9%)))))),NA()) ->  | L37: =IF(I37<=tenure,M36,"") ->  | M37: =IF(I37<=tenure,L37*((1+rated)),NA()) ->  | N37: =IF(Table1[[#This Row],[Column1]]=tenure,IF(corpnoindex<corpindex,corpnoindex,corpindex),NA()) ->  | T37: =IF(I37<=tenure,U36,"") ->  | U37: =IF(I37<=tenure,T37*((1+rate*(1-10.3%))),NA()) ->  | V37: =IF(Table1[[#This Row],[Column1]]=tenure,fdcashposttax,NA()) -> 
N38: =IF(Table1[[#This Row],[Column1]]=tenure,IF(corpnoindex<corpindex,corpnoindex,corpindex),NA()) ->  | V38: =IF(Table1[[#This Row],[Column1]]=tenure,fdcashposttax,NA()) -> 
N39: =IF(Table1[[#This Row],[Column1]]=tenure,IF(corpnoindex<corpindex,corpnoindex,corpindex),NA()) ->  | V39: =IF(Table1[[#This Row],[Column1]]=tenure,fdcashposttax,NA()) -> 
N40: =IF(Table1[[#This Row],[Column1]]=tenure,IF(corpnoindex<corpindex,corpnoindex,corpindex),NA()) ->  | V40: =IF(Table1[[#This Row],[Column1]]=tenure,fdcashposttax,NA()) -> 
N41: =IF(Table1[[#This Row],[Column1]]=tenure,IF(corpnoindex<corpindex,corpnoindex,corpindex),NA()) ->  | V41: =IF(Table1[[#This Row],[Column1]]=tenure,fdcashposttax,NA()) -> 
N42: =IF(Table1[[#This Row],[Column1]]=tenure,IF(corpnoindex<corpindex,corpnoindex,corpindex),NA()) ->  | V42: =IF(Table1[[#This Row],[Column1]]=tenure,fdcashposttax,NA()) -> 
N43: =IF(Table1[[#This Row],[Column1]]=tenure,IF(corpnoindex<corpindex,corpnoindex,corpindex),NA()) ->  | V43: =IF(Table1[[#This Row],[Column1]]=tenure,fdcashposttax,NA()) -> 
N44: =IF(Table1[[#This Row],[Column1]]=tenure,IF(corpnoindex<corpindex,corpnoindex,corpindex),NA()) ->  | V44: =IF(Table1[[#This Row],[Column1]]=tenure,fdcashposttax,NA()) -> 
N45: =IF(Table1[[#This Row],[Column1]]=tenure,IF(corpnoindex<corpindex,corpnoindex,corpindex),NA()) ->  | V45: =IF(Table1[[#This Row],[Column1]]=tenure,fdcashposttax,NA()) -> 
N46: =IF(Table1[[#This Row],[Column1]]=tenure,IF(corpnoindex<corpindex,corpnoindex,corpindex),NA()) ->  | V46: =IF(Table1[[#This Row],[Column1]]=tenure,fdcashposttax,NA()) -> 
N47: =IF(Table1[[#This Row],[Column1]]=tenure,IF(corpnoindex<corpindex,corpnoindex,corpindex),NA()) ->  | V47: =IF(Table1[[#This Row],[Column1]]=tenure,fdcashposttax,NA()) -> 
N48: =IF(Table1[[#This Row],[Column1]]=tenure,IF(corpnoindex<corpindex,corpnoindex,corpindex),NA()) ->  | V48: =IF(Table1[[#This Row],[Column1]]=tenure,fdcashposttax,NA()) -> 
N49: =IF(Table1[[#This Row],[Column1]]=tenure,IF(corpnoindex<corpindex,corpnoindex,corpindex),NA()) ->  | V49: =IF(Table1[[#This Row],[Column1]]=tenure,fdcashposttax,NA()) -> 
N50: =IF(Table1[[#This Row],[Column1]]=tenure,IF(corpnoindex<corpindex,corpnoindex,corpindex),NA()) ->  | V50: =IF(Table1[[#This Row],[Column1]]=tenure,fdcashposttax,NA()) -> 
N51: =IF(Table1[[#This Row],[Column1]]=tenure,IF(corpnoindex<corpindex,corpnoindex,corpindex),NA()) ->  | V51: =IF(Table1[[#This Row],[Column1]]=tenure,fdcashposttax,NA()) -> 
N52: =IF(Table1[[#This Row],[Column1]]=tenure,IF(corpnoindex<corpindex,corpnoindex,corpindex),NA()) ->  | V52: =IF(Table1[[#This Row],[Column1]]=tenure,fdcashposttax,NA()) -> 
N53: =IF(Table1[[#This Row],[Column1]]=tenure,IF(corpnoindex<corpindex,corpnoindex,corpindex),NA()) ->  | V53: =IF(Table1[[#This Row],[Column1]]=tenure,fdcashposttax,NA()) -> 
